[Event "2nd Cambridge Open 2024"]
[Site "Cambridge"]
[Date "2024.02.24"]
[Round "8.27"]
[White "Samarakoon, Vivash Ransara"]
[Black "Payne, Matthew J"]
[Result "1-0"]
[ECO "C02"]
[WhiteElo "1839"]
[BlackElo "2091"]
[Annotator "RC"]
[PlyCount "73"]
[EventDate "2024.02.18"]
[EventType "swiss"]
[EventCountry "ENG"]
[SourceTitle "playchess.com"]
[Source "ChessBase"]
[SourceQuality "1"]
[TimeControl "5400+30"]

1. e4 {[%emt 0:00:02]} e6 {[%emt 0:01:25]} 2. d4 {[%emt 1:31:28]} d5 {[%emt 0:00:24]} 3. e5 {[%emt 0:00:00]} c5 {[%emt 0:00:16]} 4. c3 {[%emt 0:00:00]} Nc6 {[%emt 0:00:09]} 5. Nf3 {[%emt 0:00:00]} Qb6 {[%emt 0:00:29]} 6. Bd3 {[%emt 0:00:00]} cxd4 {[%emt 0:00:52]} 7. cxd4 {[%emt 0:00:00]} Bd7 {[%emt 0:01:58]} 8. Bc2 {[%emt 0:00:00]} Nb4 {[%emt 0:02:09]} 9. O-O {[%emt 0:00:00]} Nxc2 {[%emt 0:02:05]} 10. Qxc2 {[%emt 0:00:00]} Rc8 {[%emt 0:00:20]} 11. Nc3 {[%emt 0:00:00]} Ne7 {[%emt 0:03:47]} 12. Rd1 {[%emt 0:00:00]} Nf5 {[%emt 0:08:36]} 13. a3 {[%emt 0:00:00]} Be7 {[%emt 0:12:54]} 14. Qd3 {[%emt 0:00:00]} h5 {[%emt 0:04:57]} 15. Rb1 {[%emt 0:00:00]} a5 {[%emt 0:03:42]} 16. Bg5 {[%emt 0:00:00]} Bxg5 {[%emt 0:02:08]} 17. Nxg5 {[%emt 0:00:00]} Rc4 {[%emt 0:00:14]} 18. Nf3 {[%emt 0:00:00]} a4 {[%emt 0:02:42]} 19. h3 {[%emt 0:00:00]} g5 {[%emt 0:04:37]} 20. g4 {[%emt 0:00:00]} hxg4 {[%emt 0:02:24]} 21. hxg4 {[%emt 0:00:00]} Rh3 {[%emt 0:00:30]} 22. gxf5 {[%emt 0:00:00]} g4 {[%emt 0:00:06]} 23. f6 {[%emt 0:00:00]} gxf3 {[%emt 0:02:32]} 24. Ne4 {[%emt 0:00:00]} Bb5 {[%emt 0:03:03]} 25. Nd6+ {[%emt 0:00:00]} Kd7 {[%emt 0:00:01]} 26. Nxf7 {[%emt 0:00:00]} Rh4 {[%emt 0:00:20]} 27. Qg6 {[%emt 0:00:00]} Rcxd4 {[%emt 0:00:24]} 28. Nh6 {[%emt 0:00:00]} Rxh6 {[%emt 0:03:08]} 29. Qf7+ {[%emt 0:06:25]} Kc8 {[%emt 0:01:29]} 30. Qf8+ {[%emt 0:00:19]} Kc7 {[%emt 0:00:26]} 31. Rbc1+ {[%emt 0:02:40]} Bc6 {[%emt 0:02:11]} 32. Qg7+ {[%emt 0:02:06]} Kb8 {[%emt 0:00:23]} 33. Rxd4 {[%emt 0:00:39]} Qxd4 {[%emt 0:00:43]} 34. f7 {[%emt 0:00:14]} Qh4 {[%emt 0:03:04]} 35. f8=Q+ {[%emt 0:04:07]} Ka7 {[%emt 0:00:01]} 36. Qc5+ {[%emt 0:00:00]} Ka6 {[%emt 0:00:01]} 37. Qxc6+ {[%emt 0:00:00]} 1-0

[Event "2nd Cambridge Open 2024"]
[Site "Cambridge"]
[Date "2024.02.24"]
[Round "8.28"]
[White "Woods, Yannick"]
[Black "Brett, Andrew R"]
[Result "1/2-1/2"]
[ECO "C88"]
[WhiteElo "1856"]
[BlackElo "2072"]
[Annotator "RC"]
[PlyCount "98"]
[EventDate "2024.02.18"]
[EventType "swiss"]
[EventCountry "ENG"]
[SourceTitle "playchess.com"]
[Source "ChessBase"]
[SourceQuality "1"]
[TimeControl "5400+30"]

1. e4 {[%emt 0:00:02]} e5 {[%emt 0:07:16]} 2. Nf3 {[%emt 0:00:04]} Nc6 {[%emt 0:00:10]} 3. Bb5 {[%emt 0:00:05]} a6 {[%emt 0:00:05]} 4. Ba4 {[%emt 0:00:04]} Nf6 {[%emt 0:00:12]} 5. O-O {[%emt 0:00:07]} Be7 {[%emt 0:00:12]} 6. Re1 {[%emt 0:00:07]} b5 {[%emt 0:00:10]} 7. Bb3 {[%emt 0:00:02]} O-O {[%emt 0:00:16]} 8. a4 {[%emt 0:00:08]} Bb7 {[%emt 0:00:20]} 9. d3 {[%emt 0:03:31]} d6 {[%emt 0:00:10]} 10. c3 {[%emt 0:14:14]} Na5 {[%emt 0:07:55]} 11. Ba2 {[%emt 0:01:18]} c5 {[%emt 0:00:29]} 12. Nbd2 {[%emt 0:01:16]} h6 {[%emt 0:00:42]} 13. Nf1 {[%emt 0:02:36]} c4 {[%emt 0:01:47]} 14. Ng3 {[%emt 0:00:48]} Re8 {[%emt 0:01:16]} 15. d4 {[%emt 0:03:47]} Bf8 {[%emt 0:05:24]} 16. d5 {[%emt 0:04:36]} Bc8 {[%emt 0:02:08]} 17. h3 {[%emt 0:14:02]} Bd7 {[%emt 0:04:28]} 18. axb5 {[%emt 0:01:53]} axb5 {[%emt 0:00:25]} 19. Be3 {[%emt 0:14:13]} Qc7 {[%emt 0:03:13]} 20. Bd2 {[%emt 0:04:35]} Nb7 {[%emt 0:03:42]} 21. b4 {[%emt 0:01:01]} cxb3 {[%emt 0:03:04]} 22. Bxb3 {[%emt 0:01:15]} Na5 {[%emt 0:03:34]} 23. Bc2 {[%emt 0:02:49]} Nc4 {[%emt 0:00:30]} 24. Bd3 {[%emt 0:01:46]} Rec8 {[%emt 0:02:37]} 25. Rxa8 {[%emt 0:03:06]} Rxa8 {[%emt 0:00:25]} 26. Bc1 {[%emt 0:00:26]} Na5 {[%emt 0:02:52]} 27. Qe2 {[%emt 0:04:56]} Rb8 {[%emt 0:02:48]} 28. Qc2 {[%emt 0:01:18]} Nb7 {[%emt 0:07:02]} 29. Ba3 {[%emt 0:01:53]} Nc5 {[%emt 0:00:46]} 30. Rb1 {[%emt 0:00:40]} Ra8 {[%emt 0:04:39]} 31. Bxc5 {[%emt 0:02:28]} Qxc5 {[%emt 0:00:34]} 32. Rb4 {[%emt 0:03:36]} Ra1+ {[%emt 0:03:43]} 33. Kh2 {[%emt 0:00:18]} Ra3 {[%emt 0:01:05]} 34. Ne2 {[%emt 0:00:18]} Qxf2 {[%emt 0:01:39]} 35. Bxb5 {[%emt 0:04:02]} Bxb5 {[%emt 0:03:33]} 36. Rxb5 {[%emt 0:00:16]} Ra1 {[%emt 0:05:52]} 37. Rb4 {[%emt 0:06:03]} Nh5 {[%emt 0:04:45]} 38. Qb2 {[%emt 0:01:25]} Qf1 {[%emt 0:01:03]} 39. Ng3 {[%emt 0:00:42]} Nxg3 {[%emt 0:02:29]} 40. Kxg3 {[%emt 0:00:02]} Be7 {[%emt 0:03:02]} 41. Rb7 {[%emt 0:01:04]} Bg5 {[%emt 0:00:33]} 42. Rb8+ {[%emt 0:01:08]} Kh7 {[%emt 0:00:05]} 43. Nxg5+ {[%emt 0:00:14]} hxg5 {[%emt 0:00:09]} 44. Qf2 {[%emt 0:01:09]} Qxf2+ {[%emt 0:06:35]} 45. Kxf2 {[%emt 0:00:56]} Ra2+ {[%emt 0:00:04]} 46. Kf3 {[%emt 0:01:09]} Rc2 {[%emt 0:00:26]} 47. Rc8 {[%emt 0:00:10]} g6 {[%emt 0:00:35]} 48. c4 {[%emt 0:02:06]} f5 {[%emt 0:00:17]} 49. c5 {[%emt 0:01:16]} dxc5 {[%emt 0:01:01]} 1/2-1/2

[Event "2nd Cambridge Open 2024"]
[Site "Cambridge"]
[Date "2024.02.24"]
[Round "8.29"]
[White "Skettos, Nicolas"]
[Black "Pert, Max"]
[Result "1/2-1/2"]
[ECO "B15"]
[WhiteElo "1880"]
[BlackElo "1950"]
[Annotator "RC"]
[PlyCount "40"]
[EventDate "2024.02.18"]
[EventType "swiss"]
[EventCountry "ENG"]
[SourceTitle "playchess.com"]
[Source "ChessBase"]
[SourceQuality "1"]
[TimeControl "5400+30"]

1. e4 {[%emt 0:00:02]} c6 {[%emt 0:00:12]} 2. d4 {[%emt 0:00:15]} d5 {[%emt 0:00:07]} 3. Nd2 {[%emt 0:00:41]} dxe4 {[%emt 0:00:29]} 4. Nxe4 {[%emt 0:00:03]} Nf6 {[%emt 0:00:46]} 5. Nxf6+ {[%emt 0:00:04]} exf6 {[%emt 0:00:06]} 6. c3 {[%emt 0:00:17]} Bd6 {[%emt 0:00:38]} 7. Bd3 {[%emt 0:00:03]} O-O {[%emt 0:00:56]} 8. Qc2 {[%emt 0:00:17]} Re8+ {[%emt 0:00:46]} 9. Ne2 {[%emt 0:00:05]} h6 {[%emt 0:01:56]} 10. O-O {[%emt 0:01:48]} Nd7 {[%emt 0:00:52]} 11. Bf4 {[%emt 0:06:02]} Nf8 {[%emt 0:01:25]} 12. Bxd6 {[%emt 0:00:41]} Qxd6 {[%emt 0:00:06]} 13. Rfe1 {[%emt 0:03:10]} Bd7 {[%emt 0:05:40]} 14. Qd2 {[%emt 0:03:16]} Rad8 {[%emt 0:06:52]} 15. Qf4 {[%emt 0:10:30]} Qxf4 {[%emt 0:02:37]} 16. Nxf4 {[%emt 0:00:01]} Ne6 {[%emt 0:00:13]} 17. Nxe6 {[%emt 0:20:58]} Bxe6 {[%emt 0:00:33]} 18. Re3 {[%emt 0:06:21]} Kf8 {[%emt 0:03:22]} 19. a3 {[%emt 0:02:49]} Rd7 {[%emt 0:05:26]} 20. Rae1 {[%emt 0:02:10]} Rde7 {[%emt 0:02:04]} 1/2-1/2

[Event "2nd Cambridge Open 2024"]
[Site "Cambridge"]
[Date "2024.02.24"]
[Round "8.30"]
[White "Homer, Stephen J"]
[Black "Keohane, Ben"]
[Result "0-1"]
[ECO "B03"]
[WhiteElo "2045"]
[BlackElo "1926"]
[Annotator "RC"]
[PlyCount "110"]
[EventDate "2024.02.18"]
[EventType "swiss"]
[EventCountry "ENG"]
[SourceTitle "playchess.com"]
[Source "ChessBase"]
[SourceQuality "1"]
[TimeControl "5400+30"]

1. e4 {[%emt 0:00:02]} Nf6 {[%emt 0:00:01]} 2. e5 {[%emt 0:00:02]} Nd5 {[%emt 0:00:02]} 3. c4 {[%emt 0:00:08]} Nb6 {[%emt 0:00:01]} 4. d4 {[%emt 0:00:06]} d6 {[%emt 0:00:06]} 5. exd6 {[%emt 0:00:04]} cxd6 {[%emt 0:00:01]} 6. Nc3 {[%emt 0:00:07]} g6 {[%emt 0:00:01]} 7. Be3 {[%emt 0:00:07]} Bg7 {[%emt 0:00:01]} 8. b3 {[%emt 0:00:09]} O-O {[%emt 0:02:58]} 9. Rc1 {[%emt 0:00:04]} f5 {[%emt 0:10:38]} 10. Qd2 {[%emt 0:06:41]} e5 {[%emt 0:08:24]} 11. dxe5 {[%emt 0:01:24]} dxe5 {[%emt 0:03:16]} 12. Qxd8 {[%emt 0:06:00]} Rxd8 {[%emt 0:00:14]} 13. Bg5 {[%emt 0:03:52]} Rf8 {[%emt 0:09:23]} 14. c5 {[%emt 0:00:45]} N6d7 {[%emt 0:01:28]} 15. Bc4+ {[%emt 0:00:37]} Kh8 {[%emt 0:00:05]} 16. Be7 {[%emt 0:07:43]} Re8 {[%emt 0:00:15]} 17. Nd5 {[%emt 0:00:54]} b6 {[%emt 0:18:29]} 18. Bd6 {[%emt 0:02:59]} Bb7 {[%emt 0:16:22]} 19. Nf3 {[%emt 0:05:17]} Nxc5 {[%emt 0:15:58]} 20. Bxc5 {[%emt 0:09:21]} bxc5 {[%emt 0:00:05]} 21. Nc7 {[%emt 0:00:07]} Rc8 {[%emt 0:06:34]} 22. Nxa8 {[%emt 0:00:23]} Bxa8 {[%emt 0:00:09]} 23. Ng5 {[%emt 0:03:38]} h6 {[%emt 0:00:44]} 24. Nf7+ {[%emt 0:00:08]} Kh7 {[%emt 0:00:01]} 25. O-O {[%emt 0:00:10]} e4 {[%emt 0:00:59]} 26. b4 {[%emt 0:08:52]} cxb4 {[%emt 0:01:00]} 27. Bb3 {[%emt 0:01:14]} Bc3 {[%emt 0:03:12]} 28. Rfd1 {[%emt 0:03:14]} Bc6 {[%emt 0:00:45]} 29. Rd8 {[%emt 0:02:00]} Rxd8 {[%emt 0:00:11]} 30. Nxd8 {[%emt 0:00:02]} Bb5 {[%emt 0:00:51]} 31. a3 {[%emt 0:00:59]} a5 {[%emt 0:00:14]} 32. axb4 {[%emt 0:00:05]} axb4 {[%emt 0:00:02]} 33. Rc2 {[%emt 0:01:31]} Na6 {[%emt 0:01:10]} 34. Ra2 {[%emt 0:00:12]} Kg7 {[%emt 0:01:07]} 35. Ra5 {[%emt 0:00:58]} Bd3 {[%emt 0:00:42]} 36. Ne6+ {[%emt 0:01:26]} Kf6 {[%emt 0:00:16]} 37. Nf4 {[%emt 0:00:02]} Nc7 {[%emt 0:00:40]} 38. Rc5 {[%emt 0:03:59]} Be5 {[%emt 0:01:51]} 39. Rc6+ {[%emt 0:03:04]} Kg7 {[%emt 0:00:32]} 40. Rxc7+ {[%emt 0:01:21]} Bxc7 {[%emt 0:00:02]} 41. Ne6+ {[%emt 0:00:09]} Kf6 {[%emt 0:00:01]} 42. Nxc7 {[%emt 0:00:05]} Ke5 {[%emt 0:00:07]} 43. Ne6 {[%emt 0:07:06]} f4 {[%emt 0:00:25]} 44. g3 {[%emt 0:04:38]} g5 {[%emt 0:00:42]} 45. gxf4+ {[%emt 0:08:22]} gxf4 {[%emt 0:00:02]} 46. Kg2 {[%emt 0:01:01]} Be2 {[%emt 0:00:38]} 47. Nd8 {[%emt 0:03:54]} Kd4 {[%emt 0:00:02]} 48. Nc6+ {[%emt 0:00:05]} Kc3 {[%emt 0:00:08]} 49. Na5 {[%emt 0:00:04]} Bd3 {[%emt 0:00:25]} 50. Bd5 {[%emt 0:02:50]} Bc2 {[%emt 0:01:12]} 51. Kf1 {[%emt 0:00:34]} Kd2 {[%emt 0:01:19]} 52. Nb3+ {[%emt 0:02:07]} Bxb3 {[%emt 0:00:20]} 53. Bxb3 {[%emt 0:00:02]} e3 {[%emt 0:00:05]} 54. fxe3 {[%emt 0:02:53]} fxe3 {[%emt 0:00:01]} 55. Bc4 {[%emt 0:01:34]} b3 {[%emt 0:00:07]} 0-1

[Event "2nd Cambridge Open 2024"]
[Site "Cambridge"]
[Date "2024.02.24"]
[Round "8.31"]
[White "Zhang, Junyi"]
[Black "Blauhut, Holger"]
[Result "1/2-1/2"]
[ECO "C54"]
[WhiteElo "1655"]
[BlackElo "2016"]
[Annotator "RC"]
[PlyCount "61"]
[EventDate "2024.02.18"]
[EventType "swiss"]
[EventCountry "ENG"]
[SourceTitle "playchess.com"]
[Source "ChessBase"]
[SourceQuality "1"]
[TimeControl "5400+30"]

1. e4 {[%emt 0:00:02]} e5 {[%emt 0:00:08]} 2. Nf3 {[%emt 0:00:07]} Nc6 {[%emt 1:31:22]} 3. Bc4 {[%emt 0:00:04]} Bc5 {[%emt 0:00:00]} 4. c3 {[%emt 0:00:04]} Nf6 {[%emt 0:00:00]} 5. d4 {[%emt 0:00:10]} exd4 {[%emt 0:00:00]} 6. e5 {[%emt 0:00:11]} d5 {[%emt 0:00:00]} 7. Bb5 {[%emt 0:00:04]} Ne4 {[%emt 0:00:00]} 8. cxd4 {[%emt 0:00:07]} Bb6 {[%emt 0:00:00]} 9. Nc3 {[%emt 0:00:11]} O-O {[%emt 0:00:00]} 10. Be3 {[%emt 0:00:03]} Bg4 {[%emt 0:00:00]} 11. h3 {[%emt 0:00:28]} Bh5 {[%emt 0:00:00]} 12. Qc2 {[%emt 0:00:13]} Nxc3 {[%emt 0:00:00]} 13. bxc3 {[%emt 0:00:16]} f6 {[%emt 0:00:00]} 14. exf6 {[%emt 0:00:39]} Qxf6 {[%emt 0:00:00]} 15. Be2 {[%emt 0:00:06]} Na5 {[%emt 0:00:00]} 16. O-O {[%emt 0:00:18]} Rae8 {[%emt 0:00:00]} 17. Ne5 {[%emt 0:01:50]} Bxe2 {[%emt 0:00:00]} 18. Qxe2 {[%emt 0:00:14]} Qe6 {[%emt 0:00:00]} 19. Qd2 {[%emt 0:07:35]} c5 {[%emt 0:00:00]} 20. Rfe1 {[%emt 0:07:22]} cxd4 {[%emt 0:00:00]} 21. Bxd4 {[%emt 0:07:25]} Bxd4 {[%emt 0:00:00]} 22. cxd4 {[%emt 0:00:05]} Nc6 {[%emt 0:00:00]} 23. Rac1 {[%emt 0:08:13]} Qd6 {[%emt 0:00:00]} 24. Qb2 {[%emt 0:04:13]} Re7 {[%emt 0:00:00]} 25. Re2 {[%emt 0:08:56]} Rfe8 {[%emt 0:00:00]} 26. f4 {[%emt 0:54:34]} g5 {[%emt 0:00:00]} 27. Rf1 {[%emt 0:00:00]} gxf4 {[%emt 0:00:00]} 28. Rxf4 {[%emt 0:00:00]} Nxe5 {[%emt 0:00:00]} 29. dxe5 {[%emt 0:00:00]} Qb6+ {[%emt 0:00:00]} 30. Qxb6 {[%emt 0:00:00]} axb6 {[%emt 0:00:00]} 31. Rf5 {[%emt 0:00:00]} 1/2-1/2

[Event "2nd Cambridge Open 2024"]
[Site "Cambridge"]
[Date "2024.02.24"]
[Round "8.32"]
[White "Mocic, Ivano"]
[Black "Sasikumar, Srivathsan"]
[Result "1-0"]
[ECO "D02"]
[WhiteElo "2008"]
[BlackElo "1696"]
[Annotator "RC"]
[PlyCount "49"]
[EventDate "2024.02.18"]
[EventType "swiss"]
[EventCountry "ENG"]
[SourceTitle "playchess.com"]
[Source "ChessBase"]
[SourceQuality "1"]
[TimeControl "5400+30"]

1. d4 {[%emt 0:00:03]} Nf6 {[%emt 0:00:28]} 2. Nf3 {[%emt 0:00:05]} d5 {[%emt 0:00:17]} 3. Bf4 {[%emt 0:00:09]} c6 {[%emt 0:01:38]} 4. e3 {[%emt 0:01:20]} Bf5 {[%emt 0:03:01]} 5. Bd3 {[%emt 0:08:45]} Bg6 {[%emt 0:00:44]} 6. O-O {[%emt 0:00:51]} e6 {[%emt 0:01:09]} 7. c4 {[%emt 0:03:30]} Bd6 {[%emt 0:01:27]} 8. Bg3 {[%emt 0:05:27]} Bxg3 {[%emt 0:02:23]} 9. hxg3 {[%emt 0:00:08]} Nbd7 {[%emt 0:00:22]} 10. Nc3 {[%emt 0:01:52]} O-O {[%emt 0:02:56]} 11. Bxg6 {[%emt 0:03:13]} hxg6 {[%emt 0:00:03]} 12. Qd3 {[%emt 0:01:24]} Qc7 {[%emt 0:07:50]} 13. Rad1 {[%emt 0:04:29]} Rad8 {[%emt 0:02:11]} 14. Qe2 {[%emt 0:03:56]} Rfe8 {[%emt 0:04:19]} 15. Rfe1 {[%emt 0:06:16]} dxc4 {[%emt 0:13:24]} 16. Qxc4 {[%emt 0:00:45]} e5 {[%emt 0:00:28]} 17. e4 {[%emt 0:08:07]} exd4 {[%emt 0:00:51]} 18. Rxd4 {[%emt 0:03:19]} Ne5 {[%emt 0:02:24]} 19. Nxe5 {[%emt 0:03:30]} Qxe5 {[%emt 0:00:08]} 20. Rdd1 {[%emt 0:08:34]} Qh5 {[%emt 0:06:27]} 21. f3 {[%emt 0:06:00]} Qg5 {[%emt 0:01:04]} 22. g4 {[%emt 0:07:23]} Rd2 {[%emt 0:06:35]} 23. Rxd2 {[%emt 0:02:35]} Qxd2 {[%emt 0:00:09]} 24. Qe2 {[%emt 0:00:28]} Rd8 {[%emt 0:06:30]} 25. Rd1 {[%emt 0:00:56]} 1-0

[Event "2nd Cambridge Open 2024"]
[Site "Cambridge"]
[Date "2024.02.24"]
[Round "8.33"]
[White "Crocker, Philip J"]
[Black "Jefremov, Aivar"]
[Result "1-0"]
[ECO "A13"]
[WhiteElo "2137"]
[BlackElo "1656"]
[Annotator "RC"]
[PlyCount "75"]
[EventDate "2024.02.18"]
[EventType "swiss"]
[EventCountry "ENG"]
[SourceTitle "playchess.com"]
[Source "ChessBase"]
[SourceQuality "1"]
[TimeControl "5400+30"]

1. c4 {[%emt 0:00:03]} e6 {[%emt 0:05:49]} 2. g3 {[%emt 0:00:08]} Nf6 {[%emt 0:00:30]} 3. Bg2 {[%emt 0:00:05]} d5 {[%emt 0:00:57]} 4. Nf3 {[%emt 0:00:06]} dxc4 {[%emt 0:00:51]} 5. Qa4+ {[%emt 0:00:23]} Nbd7 {[%emt 0:00:13]} 6. Qxc4 {[%emt 0:00:18]} c5 {[%emt 0:00:21]} 7. d3 {[%emt 0:01:06]} Nb6 {[%emt 0:03:14]} 8. Qb3 {[%emt 0:03:07]} Qc7 {[%emt 0:03:34]} 9. Nc3 {[%emt 0:03:15]} Bd7 {[%emt 0:01:50]} 10. O-O {[%emt 0:02:18]} Bd6 {[%emt 0:06:28]} 11. Nb5 {[%emt 0:01:58]} Bxb5 {[%emt 0:00:49]} 12. Qxb5+ {[%emt 0:00:04]} Qd7 {[%emt 0:05:52]} 13. Qa5 {[%emt 0:04:43]} O-O {[%emt 0:01:46]} 14. b3 {[%emt 0:07:26]} Qc7 {[%emt 0:13:26]} 15. Ba3 {[%emt 0:03:39]} Nbd7 {[%emt 0:01:58]} 16. Qxc7 {[%emt 0:01:30]} Bxc7 {[%emt 0:00:25]} 17. Rac1 {[%emt 0:05:10]} b6 {[%emt 0:01:18]} 18. d4 {[%emt 0:07:19]} Bd6 {[%emt 0:00:20]} 19. Ne5 {[%emt 0:01:18]} Rac8 {[%emt 0:01:26]} 20. Nc6 {[%emt 0:03:28]} Rc7 {[%emt 0:01:10]} 21. dxc5 {[%emt 0:01:16]} Bxc5 {[%emt 0:01:29]} 22. b4 {[%emt 0:02:04]} Nd5 {[%emt 0:05:39]} 23. Bxd5 {[%emt 0:02:33]} exd5 {[%emt 0:00:10]} 24. Ne7+ {[%emt 0:01:10]} Bxe7 {[%emt 0:01:40]} 25. Rxc7 {[%emt 0:00:06]} Rd8 {[%emt 0:00:12]} 26. Rxa7 {[%emt 0:02:29]} Bf6 {[%emt 0:42:03]} 27. Rc1 {[%emt 0:03:34]} Ne5 {[%emt 0:00:00]} 28. Bb2 {[%emt 0:02:31]} Nf3+ {[%emt 0:00:00]} 29. exf3 {[%emt 0:00:11]} Bxb2 {[%emt 0:00:00]} 30. Rd7 {[%emt 0:03:35]} Re8 {[%emt 0:00:00]} 31. Rb1 {[%emt 0:02:17]} Bf6 {[%emt 0:00:00]} 32. Rxd5 {[%emt 0:01:03]} Re2 {[%emt 0:00:00]} 33. Rbd1 {[%emt 0:00:45]} h6 {[%emt 0:00:00]} 34. R5d2 {[%emt 0:02:23]} Re7 {[%emt 0:00:00]} 35. Rc2 {[%emt 0:01:41]} Ra7 {[%emt 0:00:00]} 36. Rd6 {[%emt 0:05:07]} b5 {[%emt 0:00:00]} 37. Rb6 {[%emt 0:01:00]} Ra3 {[%emt 0:00:00]} 38. Kg2 {[%emt 0:00:52]} 1-0

[Event "2nd Cambridge Open 2024"]
[Site "Cambridge"]
[Date "2024.02.24"]
[Round "8.34"]
[White "Hebden, Mark L"]
[Black "Mata, Adilson"]
[Result "1-0"]
[ECO "A07"]
[WhiteElo "2416"]
[BlackElo "1924"]
[Annotator "TA"]
[PlyCount "109"]
[EventDate "2024.02.18"]
[EventType "swiss"]
[EventCountry "ENG"]
[SourceTitle "playchess.com"]
[Source "ChessBase"]
[SourceQuality "1"]
[TimeControl "5400+30"]

{[%evp 14,109,12,9,36,28,24,24,51,26,33,0,30,20,20,23,69,69,106,100,143,87,93,88,87,88,80,64,80,75,75,82,65,79,67,45,52,41,48,47,83,83,180,186,191,122,171,176,217,214,225,227,229,227,238,229,204,191,338,211,318,283,317,214,206,166,229,199,269,202,276,229,328,317,488,488,1173,1119,1486,1381,1264,1252,1599,1712,1701,1341,1212,922,885,871,1461,1760,1625,1668,1704,1703,1871,1743]} 1. Nf3 {[%emt 0:00:22]} d5 {[%emt 0:00:22]} 2. g3 {[%emt 0:00:41]} Nf6 {[%emt 0:00:32]} 3. Bg2 {[%emt 0:00:07]} e6 {[%emt 0:01:49]} 4. O-O {[%emt 0:00:27]} Be7 {[%emt 0:00:08]} 5. d3 {[%emt 0:00:19][%cal Bd2d3,Bd3e4,Be4e5][%mdl 32]} O-O {[%emt 0:00:35]} 6. Nbd2 {[%emt 0:00:06]} b6 {[%emt 0:03:40]} 7. e4 {[%emt 0:00:57]} dxe4 {[%emt 0:00:44]} 8. dxe4 {[%emt 0:04:35]} Ba6 {[%emt 0:02:59]} 9. Re1 {[%emt 0:00:26]} Qc8 {[%emt 0:00:18]} 10. c3 {[%emt 0:05:04]} Rd8 {[%emt 0:02:00] White has an edge.} 11. e5 {[%emt 0:08:52]} Nfd7 {[%emt 0:06:45][%cal Bf6d7,Bd7f8,Bf8g6,Bg6e7][%mdl 32]} 12. b4 {[%emt 0:02:33][%cal Bb2b4,Bb4b5][%mdl 32]} Nf8 {[%emt 0:02:13]} 13. a4 {[%emt 0:03:08]} Bb7 {[%emt 0:02:06]} 14. Qe2 {[%emt 0:07:14]} a5 {[%emt 0:00:28]} (14... Nbd7 $11 {should be considered.}) 15. b5 $14 {[%emt 0:01:22]} Ng6 {[%emt 0:09:18]} 16. h4 {[%emt 0:00:44][%cal Bh2h4,Bh4h5][%mdl 32]} Bf8 {[%emt 0:00:21]} 17. Nc4 {[%emt 0:03:01]} ({White should play} 17. h5 Ne7 18. Ba3) 17... Nd7 {[%emt 0:01:35]} 18. h5 {[%emt 0:04:36]} Ne7 {[%emt 0:00:08]} 19. Bg5 {[%emt 0:01:37][%cal Oh5h6]} h6 {[%emt 0:00:23]} 20. Bh4 {[%emt 0:00:59]} Nc5 {[%emt 0:07:10]} 21. Nd4 {[%emt 0:01:28]} Bxg2 {[%emt 0:00:50]} 22. Kxg2 {[%emt 0:00:10]} Rd7 {[%emt 0:03:34]} 23. Bxe7 {[%emt 0:00:50]} Bxe7 {[%emt 0:00:32]} 24. Nc6 {[%emt 0:06:09]} Qe8 {[%emt 0:01:30]} 25. Red1 {[%emt 0:05:25]} Rxd1 {[%emt 0:05:38]} 26. Qxd1 {[%emt 0:00:44]} (26. Rxd1 Nxa4 27. Qf3 Bf8 $15) 26... Nb7 {[%emt 0:02:56]} 27. Qf3 $36 {[%emt 0:01:44][%mdl 2048] [#] Black must now prevent Nxe7+. White is really pushing. White is much more active.} Bc5 {[%emt 0:00:34]} (27... Bg5 $16) 28. Rd1 {[%emt 0:00:56]} Bf8 {[%emt 0:00:30]} 29. Rd4 {[%emt 0:01:51]} (29. Nd2 $18) 29... Nc5 {[%emt 0:00:48]} (29... Kh8 $16 30. Rh4 Bc5) 30. Nd2 $18 {[%emt 0:00:52]} Rc8 {[%emt 0:00:35]} 31. Ne4 {[%emt 0:01:12]} Nxe4 {[%emt 0:02:24]} 32. Qxe4 {[%emt 0:00:23]} Bc5 {[%emt 0:00:57] Black is weak on the light squares} 33. Rd3 {[%emt 0:00:46]} Kh8 {[%emt 0:02:45]} 34. Qf3 {[%emt 0:01:48]} Kg8 {[%emt 0:00:34]} 35. Qd1 {[%emt 0:00:28]} Kf8 {[%emt 0:01:08]} (35... Ra8 $142 36. c4 (36. Rd7 Bd6 $18) 36... Kh7) 36. f4 {[%emt 0:00:44]} Kg8 {[%emt 0:02:28]} (36... Be7 $142 37. g4 (37. Rd7 Bd6 $16) 37... f6) 37. g4 {[%emt 0:03:12]} Bf8 {[%emt 0:03:12]} 38. Qf3 {[%emt 0:01:59]} Be7 {[%emt 0:00:58]} 39. Kf1 {[%emt 0:00:30][%cal Bg2f1,Bf1e2,Be2d1,Bd1c2][%mdl 32]} Bc5 {[%emt 0:03:06]} (39... f6 $142 40. f5 Bf8) 40. Ke2 {[%emt 0:00:08]} Bf8 {[%emt 0:01:17]} (40... Be7 $142 41. Rd1 Bc5) 41. Kd1 {[%emt 0:00:07]} Bc5 {[%emt 0:00:18]} 42. Kc2 {[%emt 0:00:05]} Bf8 {[%emt 0:00:08]} (42... Kh8 {was called for.} 43. g5 g6 44. hxg6 (44. gxh6 Qg8 $18) 44... fxg6 45. gxh6 Qf7) 43. f5 {[%emt 0:01:56][%cal Bf4f5,Bf5f6][%mdl 32]} Bc5 {[%emt 0:04:57]} (43... f6 {might work better.} 44. Re3 Qf7 45. fxe6 (45. exf6 exf5 46. Qxf5 Re8 $18) 45... Qxe6) 44. f6 {[%emt 0:00:28] White is clearly winning.} Bf8 {[%emt 0:00:53]} (44... Qf8 $142 45. Rd7 Re8 46. Rxc7 gxf6 47. Qxf6 Qg7 48. Qxg7+ Kxg7 49. Nxa5 Ra8) 45. Qf4 {[%emt 0:01:04]} Kh7 {[%emt 0:00:52]} 46. g5 {[%emt 0:02:02]} hxg5 {[%emt 0:02:23]} 47. Qxg5 {[%emt 0:00:13]} gxf6 {[%emt 0:01:46]} 48. exf6 {[%emt 0:00:23]} Bh6 {[%emt 0:01:18]} 49. Qe5 {[%emt 0:00:13] [#] Qe4+ is the strong threat.} Qg8 {[%emt 0:01:34]} 50. Rg3 {[%emt 0:04:25]} Qf8 {[%emt 0:00:39]} 51. Ne7 {[%emt 0:00:50]} Rd8 {[%emt 0:01:12]} 52. Rg8 {[%emt 0:02:16]} Qxg8 {[%emt 0:07:56]} 53. Nxg8 {[%emt 0:00:29]} Rd2+ {[%emt 0:00:45]} 54. Kb3 {[%emt 0:00:19] Intending Nxh6 and mate.} Kxg8 {[%emt 0:00:06]} 55. Qg3+ {[%emt 0:00:37] Weighted Error Value: White=0.22 (precise) /Black=0.36.  Mistake:       	White=2     	Black=10     Inaccurate:     	White=3     	Black=7      OK:         	White=12    	Black=4      Best:        	White=3     	Black=2} 1-0